Cogmind - Beta 10.2 @@@ ROGUE MODE // 2020.11.21 @ 17:44:50 // Halloween2020/ForbiddenLore Player: Buffy Result: Destroyed by as-98427 with Assembled F-torch Performance ------------- Evolutions (0) 0 Regions Visited (2) 400 Robots Destroyed (16) 80 Value Destroyed (305) 305 Prototype IDs (0) 0 Alien Tech Used (0) 0 Bonus (0) 0 TOTAL SCORE: 785 Bonus ------- None Cogmind --------- Core Integrity 0/250 Matter 268/300 Energy 100/100 System Corruption 0% Temperature Cool (40) Movement Core (50) Location -10/Mines Parts ------- > --- POWER (1) -------- (None) > --- PROPULSION (2) --- (None) > --- UTILITY (2) ------ (None) > --- WEAPON (2) ------- (None) > --- INVENTORY (4) ---- Ion Engine Aluminum Leg EM Shotgun Grenade Launcher Peak State ------------ > --- POWER ------------ Light Nuclear Core > --- PROPULSION ------- Aluminum Leg Aluminum Leg > --- UTILITY ---------- Small Storage Unit ECM Suite > --- WEAPON ----------- Medium Laser Improved Light Cannon > --- INVENTORY -------- Ion Engine Light Ion Engine Aluminum Leg EM Shotgun Beam Cannon Assault Rifle [Rating: 10] Favorites ----------- Power Ion Engine Engine Ion Engine Power Core Light Nuclear Core Propulsion Aluminum Leg Leg Aluminum Leg Utility Small Storage Unit Device ECM Suite Storage Small Storage Unit Weapon Assault Rifle Energy Gun Medium Laser Energy Cannon Beam Cannon Ballistic Gun Assault Rifle Ballistic Cannon Improved Light Cannon Launcher Grenade Launcher Build | -11 -10 -10 ------- Run | Scr Mat Min Slots Evolved . | . . . Power . | . . . Propulsion . | . . . Utility . | . . . Weapon . | . . . Parts Attached 19 | 6 8 5 Power 4 | 1 2 1 Engine 3 | 1 2 . Core 1 | . . 1 Reactor . | . . . Propulsion 3 | 2 1 . Treads . | . . . Leg 3 | 2 1 . Wheel . | . . . Hover . | . . . Flight . | . . . Utility 2 | 1 1 . Device 1 | . 1 . Storage 1 | 1 . . Processor . | . . . Hackware . | . . . Protection . | . . . Artifact . | . . . Weapon 10 | 2 4 4 Energy Gun 4 | 1 2 1 Energy Cannon 1 | . 1 . Ballistic Gun 3 | 1 1 1 Ballistic Cannon 1 | . . 1 Launcher 1 | . . 1 Special Weapon . | . . . Impact Weapon . | . . . Slashing Weapon . | . . . Piercing Weapon . | . . . Special Melee Weapon . | . . . Unidentified Prototypes . | . . . Parts Lost 2 | . 1 1 Power 1 | . 1 . Propulsion . | . . . Utility . | . . . Weapon 1 | . . 1 Highest Loss Streak 1 | . 1 1 Average Slot Usage (%) 88 | . 88 88 Engine 10 | . 14 4 Core 2 | . . 8 Leg 26 | . 28 24 Device 6 | . 3 12 Storage 13 | . 14 12 Energy Gun 11 | . 10 12 Energy Cannon 2 | . 3 . Ballistic Gun 11 | . 14 7 Ballistic Cannon 1 | . . 4 Naked Turns 17 | . . 17 Heaviest Build 16 | 13 14 16 Greatest Support 20 | 20 20 20 Greatest Overweight (x) . | . . . Average Overweight (x) . | . . . Largest Inventory Capacity 6 | 6 6 6 Average Capacity 5 | 5 6 5 Most Carried 6 | 3 6 6 Average Carried 5 | 1 5 5 Final Capacity 6 | 6 6 4 Final Carried 6 | 2 6 4 Class Distribution -------------------- 100% | Mutant Dominant Class ---------------- Mutant | -10/Materials Mutant | -10/Mines Resources | -11 -10 -10 ----------- Run | Scr Mat Min Matter Collected 467 | 266 159 42 Remotely . | . . . Salvage Created 412 | 88 303 21 Parts 24 | 2 16 6 Haulers Intercepted . | . . . Recyclers Shooed 1 | . 1 . Parts Field Recycled . | . . . Retrieved Matter . | . . . Parts Self-Destructed . | . . . Prevented . | . . . Kills | -11 -10 -10 ------- Run | Scr Mat Min Combat Hostiles Destroyed 14 | . 8 6 Guns 11 | . 8 3 AOE 3 | . . 3 Classes Destroyed 3 | 1 2 . Recycler 2 | 1 1 . Swarmer 9 | . 3 6 Grunt 5 | . 5 . Best Kill Streak 3 | 1 3 3 Combat Bots Only 3 | . 3 3 Max Kills in Single Turn 2 | 1 1 2 Gunslinging . | . . . Exploded 2 | . . 2 Melee . | . . . Uniques/NPCs Destroyed . | . . . Combat | -11 -10 -10 -------- Run | Scr Mat Min Damage Taken 722 | . 330 392 Core 260 | . 54 206 Absorbed by Shields . | . . . Core Remaining (%) 100 | 100 . . Volleys Fired 39 | 2 28 9 Largest 2 | 2 2 2 Hottest 89 | 70 80 89 Shots Fired 74 | 4 55 15 Gun 58 | 4 47 7 Cannon 14 | . 8 6 Launcher 2 | . . 2 Special . | . . . Kinetic 37 | 2 28 7 Thermal 27 | 2 19 6 Explosive 2 | . . 2 Electromagnetic 8 | . 8 . Robot Hit Streak 7 | 2 7 3 Robot Miss Streak 3 | 1 3 2 Penetration Max . | . . . Secondary Targets . | . . . Shots Hit Robots 45 | 3 35 7 Core Hits 25 | 2 15 8 Critical Hits . | . . . Critical Kills . | . . . Critical Parts Destroyed . | . . . Melee Attacks . | . . . Impact . | . . . Slashing . | . . . Piercing . | . . . Sneak Attacks . | . . . Combat Hostiles . | . . . Follow-up Attacks . | . . . Damage Inflicted 853 | 39 433 381 Guns 451 | 39 361 51 Cannons 92 | . 68 24 Explosions 282 | . . 282 Melee . | . . . Ramming 28 | . 4 24 Kinetic 208 | 27 144 37 Thermal 378 | 12 181 185 Explosive 135 | . . 135 Electromagnetic 104 | . 104 . Impact . | . . . Slashing . | . . . Piercing . | . . . Highest Corruption . | . . . Average Corruption . | . . . Corruption Purged . | . . . Overload Shots . | . . . Overflow Damage 26 | . . 26 Projectiles . | . . . Explosions 26 | . . 26 Melee . | . . . Knockbacks . | . . . Impact . | . . . Kinetic . | . . . Secondary . | . . . Self-Inflicted Damage 29 | . 2 27 Shots 2 | . . 2 Rammed 6 | . 1 5 Targets Rammed 6 | . 1 5 Kicked . | . . . Crushed . | . . . Highest Temperature 135 | 18 90 135 Average Temperature 32 | 10 27 50 Received Heat Transfer 300 | . 120 180 Siege Activations . | . . . Robots Corrupted . | . . . Combat Hostiles . | . . . Parts Fried . | . . . Impact Corruptions . | . . . Robots Melted . | . . . Combat Hostiles . | . . . Parts Melted 3 | . 1 2 Heat Transferred 779 | 37 481 261 Parts Sabotaged . | . . . Parts Stolen . | . . . Parts Stripped . | . . . Power Chain Reactions . | . . . Missiles Intercepted . | . . . Alert | -11 -10 -10 ------- Run | Scr Mat Min Peak Influence 263 | 5 228 263 Initial 88 | . 3 88 Average 132 | . 111 229 Maximum Alert Level 1 | . 1 1 Low Security (%) 66 | 100 75 33 Level 1 33 | . 24 66 Level 2 . | . . . Level 3 . | . . . Level 4 . | . . . Level 5 . | . . . High Security . | . . . Max Security . | . . . Squads Dispatched 3 | . 3 . Investigation 1 | . 1 . Extermination . | . . . Reinforcement 2 | . 2 . Assault . | . . . Garrison . | . . . Intercept . | . . . Construction Impeded . | . . . Haulers Reinforced . | . . . Stealth | -11 -10 -10 --------- Run | Scr Mat Min Distress Signals 1 | . 1 . Communications Jammed . | . . . Distress Signals . | . . . Times Spotted 39 | . 12 27 Peak Tracking Total 22 | . 4 22 Tactical Retreats 2 | . 1 1 Traps | -11 -10 -10 ------- Run | Scr Mat Min Traps Triggered 1 | . 1 . Indirectly . | . . . Trap Hack Attempts . | . . . Triggered . | . . . Disarmed . | . . . Reprogrammed . | . . . Reused . | . . . Traps Extracted . | . . . Installed . | . . . Triggered . | . . . Machines | -11 -10 -10 ---------- Run | Scr Mat Min Machines Disabled 2 | . . 2 Max in Single Turn 1 | . . 1 Machines Sabotaged . | . . . Garrisons Compromised . | . . . Overloaded Fab Kills . | . . . Fab Network Shutdowns . | . . . Hacking | -11 -10 -10 --------- Run | Scr Mat Min Machines Accessed 1 | . 1 . Terminals 1 | . 1 . Fabricators . | . . . Repair Stations . | . . . Recycling Units . | . . . Scanalyzers . | . . . Garrison Access . | . . . Total Hacks 3 | . 3 . Successful 1 | . 1 . Failed 2 | . 2 . Catastrophic 1 | . 1 . Database Lockouts . | . . . Manual 3 | . 3 . Terminals 3 | . 3 . Fabricators . | . . . Repair Stations . | . . . Recycling Units . | . . . Scanalyzers . | . . . Garrison Access . | . . . Terminal Hacks . | . . . Fabricator Hacks . | . . . Repair Station Hacks . | . . . Recycling Unit Hacks . | . . . Scanalyzer . | . . . Garrison Access Hacks . | . . . Unauthorized Hacks 1 | . 1 . Terminals 1 | . 1 . Botnet 1 | . 1 . Fabricators . | . . . Repair Stations . | . . . Recycling Units . | . . . Scanalyzers . | . . . Garrison Access . | . . . Data Cores Recovered . | . . . Used . | . . . Hacking Detections 1 | . 1 . Full Trace Events . | . . . Feedback Events . | . . . Feedback Blocked . | . . . Robot Schematics Acquired . | . . . Robots Built . | . . . Matter . | . . . Time . | . . . Total Robot Build Rating . | . . . Part Schematics Acquired . | . . . Parts Built . | . . . Matter . | . . . Time . | . . . Total Part Build Rating . | . . . Parts Repaired . | . . . Time . | . . . Parts Recycled . | . . . Recycled Matter . | . . . Retrieved Matter . | . . . Retrieved Components . | . . . Parts Scanalyzed . | . . . Part Schematics Acquired . | . . . Parts Damaged . | . . . Bothacking | -11 -10 -10 ------------ Run | Scr Mat Min Used RIF Installer . | . . . Robots Hacked . | . . . Non-combat . | . . . Combat . | . . . Robot Hacks Applied . | . . . Relay Couplers Released . | . . . Robots Rewired . | . . . Allies Hacked . | . . . Hacks Repelled . | . . . Allies | -11 -10 -10 -------- Run | Scr Mat Min Total Allies . | . . . Largest Group . | . . . Highest-Rated Group . | . . . Highest-Rated Ally . | . . . Total Orders . | . . . Ally Attacks . | . . . Total Damage . | . . . Kills . | . . . Allies Corrupted . | . . . Allies Melted . | . . . Intel | -11 -10 -10 ------- Run | Scr Mat Min Robot Analysis Total . | . . . Derelict Logs Recovered 1 | . . 1 Drone Launches . | . . . Drone Recoveries . | . . . Exploration | -11 -10 -10 ------------- Run | Scr Mat Min Turns Passed 591 | 67 355 169 Spaces Moved 343 | 45 174 124 Core 35 | 9 . 26 Treads . | . . . Legs 308 | 36 174 98 Wheels . | . . . Hover . | . . . Flight . | . . . Fastest Speed 50 | 50 120 50 Average Speed 112 | 106 120 105 Slowest Speed 120 | 120 120 120 Overloaded Moves . | . . . Propulsion Burnouts . | . . . Robots Hopped . | . . . Cave-ins Triggered . | . . . Exploration Rate (%) 19 | 4 29 24 Regions Visited 2 Branch Regions 1 Pre-discovered Areas . | . . . Known Exits Taken . | . . . Unknown Exits Taken 2 | 1 1 . Scrap Searched 1 | . . 1 Spaces Dug . | . . . Terrain Destroyed 26 | . . 26 Melee . | . . . Projectile 1 | . . 1 AOE 25 | . . 25 Terrain Rammed . | . . . Walls Destroyed . | . . . Machines Disabled . | . . . Actions | -11 -10 -10 --------- Run | Scr Mat Min Total 470 | 60 264 146 Wait 45 | 1 44 . Move 341 | 44 173 124 Hop . | . . . Pick Up 15 | 7 6 2 Fast Attach 2 | 1 1 . Attach 7 | 5 1 1 Detach . | . . . Swap 10 | . 6 4 Drop 5 | . 4 1 Fire 39 | 2 28 9 Melee . | . . . Ram 5 | . . 5 Kick 1 | . 1 . Crush . | . . . Escape Stasis . | . . . Rewire . | . . . Trap . | . . . Miscellaneous . | . . . Route ------- -11/Scrapyard -10/Materials -10/Mines History --------- Turn | Location | Event 2 | -11/Scrapyard | Met Revision 17 5 | -11/Scrapyard | Discovered new exit (range 14) 68 | -11/Scrapyard | Entered Materials 318 | -10/Materials | Build established: Mutant 367 | -10/Materials | Discovered new exit (range 13) 423 | -10/Materials | Entered Mines 552 | -10/Mines | Assembled infested the area 552 | -10/Mines | Learned 2 Materials zone layouts 575 | -10/Mines | Released all parts (7) 588 | -10/Mines | Core integrity fell below 50% 592 | -10/Mines | Core integrity fell below 20% 592 | -10/Mines | Destroyed by as-98427 with Assembled F-torch Last Messages --------------- 00499_ Acquired 6 matter. 00552_ ALERT: Infestation in the mines, dispatching Demolisher response squad. 00552_ Acquired derelict log, extracted data. Data stored: Materials zone layouts (x2). [Achievement: Hunted] 00555_ K-01 Serf destroyed. 00557_ G-47 Trooper knocked back. 00558_ G-47 Trooper destroyed. 00575_ Released Lgt. Nuclear Core. 00575_ Released Med. Laser. 00575_ Released ECM Suite. 00575_ Released Sml. Storage Unit. 00575_ Released Aluminum Leg. 00575_ Released Assault Rifle. 00588_ Slammed into as-89069. 00589_ as-89069 destroyed. 00590_ Slammed into as-39981. 00591_ Slammed into as-81796. 00592_ Slammed into as-42132. Map ----- +----------------------------------------------------+ | ?????????????????????????????? | | ?????????????????????????????? | | ?????????????????????????????? | | ?????????????????????????????? | | ?????????????????????????????? | | ?????????????????????????????? | | ?????????????????????????????? | | ?????????????????????????????? | | ?????????????????????????????? | | ?????????????????????????????? | | ?????????????????????????????? | | ?????????????????????????????? | | ?????????????????????????????? | | ????????????????? ?????????? | | ??????????????? ?????????? | | ???????????? ?????????? | | ?????????? %?????????? | | ?????????? ?????????? | | ??????????? ?#######?? | | ???????????# = ?# a #?? | | ???????????# %! ## """a#?? | | ???????????# ## """a##? | | ???????????? ## """aT#? | | ????????????? # aa%##? | | ??????????????# ###aa##?? | | ???????????????# #?#a@#??? | | ???????????????# #?#aa#??? | | ????????????????? #?#a #??? | | ??????????????????# #?#a #??? | | ??????????????????# #?#a #??? | | ??????????????????# ###a #??? | | ??????????????????# ## #??? | | ??????????????????# # ##?? | | ??????????????????# # a #?? | | ??????????????????# ## #?? | | ??????????????????# ### #?? | | ??????????????????# ###[= #?? | | ?????????????????## ##]*!]#?? | | ????????????????## =![##?? | | ???????????###### ##??? | | ##?????????# ##???? | | #?????????# ##????? | | #????????## #### #?????? | | *#???????##" """"## #????? | | #???????# "### #???? | | /######### "#### #??? | | " #?## #??? | | "##??? #??? | | ########## "#???? #??? | | ?????????# "#???? #??? | +----------------------------------------------------+ Best States ------------- Heat Dissipation 25 Energy Generation 14 Energy Capacity 250 Matter Stores 300 Matter Capacity 300 Sight Range 16 Terrain Scan Density 10 ECM Strength 1 Evasion (%) 50 Item Schematics ----------------- None Robot Schematics ------------------ None Fabricated ------------ Nothing Alien Tech Used ----------------- None Achievements -------------- Hunted Challenges ------------ None Game ------ Seed StorageBladeMeganuke Manual? 0 Play Time 00:20:54 Cumulative 55.5 hours Start 2020.11.21 @ 17:20:35 End 2020.11.21 @ 17:44:50 Sessions 3 Manual Loads 0 Difficulty Rogue Special Mode Halloween2020/ForbiddenLore Game No. 21 Rogue 18 Adventurer 1 Explorer 2 Win Type - Total 0 Types 0/0/0/0/0/0/0/0/0 Lore% 25 Gallery% 31 Achievement% 26 Wizard Run 0 Options --------- ASCII 0 Keyboard 0 Movement Mouse Keybinds 0 Fullscreen 1 Font 18/SmallcapsGlow Map View 76x50 Tactical HUD 1 Map Filters NONE Filters NONE Steam 0 RUN: e1b2862e-e7d6-47c5-8b20-a6084d538990